bitfinex-derivatives/quotes_BTCF0:USTF0_20250710
["timestamp","ask_amount","ask_price","bid_price","bid_amount"]
[1752155128285,0.02938,110920.0,110910.0,1.77034748]
[1752155128481,0.04573,110920.0,110910.0,1.77034748]
[1752155128681,0.04573,110920.0,110910.0,1.38436757]
[1752155128889,0.04573,110920.0,110910.0,1.77034748]
[1752155129084,0.225978,110920.0,110910.0,1.32876557]
[1752155129287,0.07703,110920.0,110910.0,1.29876557]
[1752155130186,0.02938,110920.0,110910.0,1.29876557]
[1752155130388,0.04573,110920.0,110910.0,1.33136557]
[1752155130784,0.006,110920.0,110910.0,1.71734548]
[1752155130985,0.006,110920.0,110910.0,1.78974913]
[1752155131185,0.004,110920.0,110910.0,1.80504748]
[1752155131495,0.003,110920.0,110910.0,1.72426557]
[1752155131694,0.04273,110920.0,110910.0,0.96481566]
[1752155131896,0.04273,110920.0,110910.0,1.39947748]
[1752155132095,0.07293,110920.0,110910.0,1.41214748]
[1752155132594,0.04273,110920.0,110910.0,1.41214748]
[1752155132800,0.003,110920.0,110910.0,1.44424748]
[1752155133095,0.003,110920.0,110910.0,1.06883389]
[1752155133299,0.003,110920.0,110910.0,1.4548138]
[1752155133498,0.04273,110920.0,110910.0,1.4548138]
[1752155134189,0.003,110920.0,110910.0,1.4548138]
[1752155134387,0.002,110930.0,110920.0,0.1958479]
[1752155134603,0.03973,110940.0,110930.0,0.22718177]
[1752155134795,0.43303,110950.0,110940.0,0.1958154]
[1752155134989,0.43303,110950.0,110940.0,0.62646531]
[1752155135194,0.002,110960.0,110950.0,0.2084692]
[1752155135386,0.02538,110960.0,110950.0,1.96652558]
[1752155135588,0.02538,110960.0,110950.0,1.99652558]
[1752155135988,0.02538,110960.0,110950.0,2.0070886]
[1752155136501,0.04173,110960.0,110950.0,1.9450886]
[1752155136695,0.07423,110960.0,110950.0,1.9450886]
[1752155136902,0.04173,110960.0,110950.0,1.94508852]
[1752155137098,0.002,110960.0,110950.0,2.00798852]
[1752155137405,0.01635,110980.0,110970.0,0.1756132]
[1752155137607,0.3628,111000.0,110990.0,0.180134]
[1752155137804,0.3628,111000.0,110990.0,1.55331575]
[1752155137805,0.0328,111000.0,110990.0,1.55331575]
[1752155138102,0.0328,111000.0,110990.0,1.93929566]
[1752155138307,0.002,111000.0,110990.0,1.93929566]
[1752155138509,0.002,111000.0,110990.0,1.61511575]
[1752155138808,0.3628,111000.0,110990.0,2.00109566]
[1752155139018,0.3936,111000.0,110990.0,2.00109566]
[1752155139599,0.0328,111000.0,110990.0,1.61511575]
[1752155139792,0.002,111000.0,110990.0,2.74787557]
[1752155140102,7e-08,111010.0,111000.0,0.205008]
[1752155140398,7e-08,111010.0,111000.0,1.40056782]
[1752155140806,7e-08,111010.0,111000.0,0.267808]
[1752155141002,7e-08,111010.0,111000.0,0.59098791]
[1752155141003,0.38418007,111010.0,111000.0,0.59098791]
[1752155141193,0.02338,111000.0,110990.0,0.31408465]
[1752155141393,0.05668,111000.0,110990.0,1.37074456]
[1752155141793,0.05668,111000.0,110990.0,1.32555356]
[1752155142001,0.3941,111000.0,110990.0,1.3658484]
[1752155142199,0.3941,111000.0,110990.0,1.4315484]
[1752155142396,0.41748,111000.0,110990.0,0.26905365]
[1752155142591,0.41748,111000.0,110990.0,0.94061365]
[1752155142795,0.41748,111000.0,110990.0,1.32659356]
[1752155143003,0.41748,111000.0,110990.0,1.32663356]
[1752155143199,0.41748,111000.0,110990.0,1.32711356]
[1752155143799,0.05668,111000.0,110990.0,1.32711356]
[1752155144000,0.0333,111000.0,110990.0,1.32711356]
[1752155144308,0.00100007,111010.0,111000.0,0.2050076]
[1752155144512,7e-08,111010.0,111000.0,1.04016742]
[1752155144809,7e-08,111010.0,111000.0,1.01527742]
[1752155145596,7e-08,111010.0,111000.0,0.62929751]
[1752155145796,0.00100007,111010.0,111000.0,1.40096742]
[1752155146708,0.00100007,111010.0,111000.0,0.6290076]
[1752155146910,0.00100007,111010.0,111000.0,1.40096742]
[1752155147703,0.08798,111030.0,111020.0,0.1800852]
[1752155148017,0.0646,111030.0,111020.0,1.28398279]
[1752155148200,0.02538,111040.0,111030.0,0.1800691]
[1752155148405,0.45138,111040.0,111030.0,0.59093901]
[1752155149100,0.09058,111040.0,111030.0,0.59093901]
[1752155149405,0.45138,111040.0,111030.0,0.59093901]
[1752155149609,0.45438,111040.0,111030.0,0.59093901]
[1752155150013,0.45438,111040.0,111030.0,1.26713901]
[1752155150412,0.0702,111040.0,111030.0,1.26713901]
[1752155150711,0.0375,111040.0,111030.0,1.66083901]
[1752155150909,0.0689,111040.0,111030.0,1.66083901]
[1752155151110,0.0709,111040.0,111030.0,1.33313901]
[1752155151311,0.0709,111040.0,111030.0,1.30003901]
[1752155151513,0.4317,111040.0,111030.0,1.30003901]
[1752155151707,0.45583,111040.0,111030.0,1.30003901]
[1752155152216,0.45583,111040.0,111030.0,1.3092113]
[1752155152516,0.0709,111040.0,111030.0,1.3092113]
[1752155152717,0.0709,111040.0,111030.0,1.3407113]
[1752155153008,0.0709,111040.0,111030.0,0.9455591]
[1752155153212,0.0709,111040.0,111030.0,1.33153901]
[1752155153515,0.007,111040.0,111030.0,1.33153901]
[1752155153720,0.007,111040.0,111030.0,2.07831892]
[1752155154011,0.007,111040.0,111030.0,0.2049591]
[1752155154209,0.09383,111040.0,111030.0,1.26845901]
[1752155154410,0.45463,111040.0,111030.0,1.26845901]
[1752155155009,0.4305,111040.0,111030.0,1.26845901]
[1752155155208,0.4305,111040.0,111030.0,1.69265901]
[1752155155209,0.007,111040.0,111030.0,1.69265901]
[1752155155612,0.007,111040.0,111030.0,1.34723901]
[1752155155918,0.007,111040.0,111030.0,1.70803901]
[1752155155919,0.01589472,111040.0,111030.0,1.70803901]
[1752155156114,0.01589472,111040.0,111030.0,1.3220591]
[1752155156317,0.01589472,111040.0,111030.0,1.34723901]
[1752155156517,0.07949472,111040.0,111030.0,1.34723901]
[1752155156714,0.0706,111040.0,111030.0,0.9612591]
[1752155157020,0.08624,111040.0,111030.0,1.34723901]
[1752155157216,0.08624,111040.0,111030.0,0.9612591]
[1752155157409,0.0706,111040.0,111030.0,1.34723901]
[1752155157616,0.007,111040.0,111030.0,2.09401892]
[1752155158419,0.002,111050.0,111040.0,0.2184228]
[1752155158621,0.46527,111070.0,111060.0,0.2183904]
[1752155158821,0.46527,111070.0,111060.0,1.96049031]
[1752155160334,0.46627,111070.0,111060.0,1.5745104]
[1752155160628,0.46627,111070.0,111060.0,1.5515204]
[1752155160924,0.2041666,111050.0,111040.0,0.03401671]
[1752155161123,0.40057,111050.0,111040.0,0.87616951]
[1752155161326,0.46617,111050.0,111040.0,0.89154951]
[1752155161638,1.57433669,111050.0,111040.0,0.01863671]
[1752155161934,0.02413,111040.0,111030.0,0.948327]
[1752155162125,0.44843,111040.0,111030.0,0.948327]
[1752155162430,0.44843,111040.0,111030.0,0.9033101]
[1752155162834,0.6284882,111040.0,111030.0,0.1800688]
[1752155163021,0.44843,111040.0,111030.0,0.8598688]
[1752155163229,0.6284825,111040.0,111030.0,0.8598688]
[1752155163528,0.44843,111040.0,111030.0,1.24584871]
[1752155163835,0.44843,111040.0,111030.0,0.56604871]
[1752155164029,0.44843,111040.0,111030.0,1.24560871]
[1752155164328,0.6284826,111040.0,111030.0,0.8596288]
[1752155164529,0.469314,111040.0,111030.0,0.6818]
[1752155164827,0.6284875,111040.0,111030.0,0.8618688]
[1752155165427,1.19458741,111040.0,111030.0,0.1800688]
[1752155165731,1.32964191,111040.0,111030.0,0.1800689]
[1752155165923,1.32964191,111040.0,111030.0,0.1810689]
[1752155166522,0.943662,111040.0,111030.0,0.1830689]
[1752155166823,1.32964191,111040.0,111030.0,0.1830689]
[1752155167020,0.943662,111040.0,111030.0,0.1830689]
[1752155167222,0.943662,111040.0,111030.0,0.1810689]
[1752155167425,0.943662,111040.0,111030.0,0.1820689]
[1752155167627,1.32964191,111040.0,111030.0,0.1820689]
[1752155167934,0.9142855,111040.0,111030.0,0.1820689]
[1752155168134,0.8242542,111040.0,111030.0,0.1820689]
[1752155168631,1.21023411,111040.0,111030.0,0.002]
[1752155168929,0.23710666,111030.0,111020.0,0.1800851]
[1752155169232,1.04998657,111030.0,111020.0,0.1800851]
[1752155169424,1.04998657,111030.0,111020.0,0.22004406]
[1752155170035,1.04998657,111030.0,111020.0,0.22204406]
[1752155170434,0.66400666,111030.0,111020.0,0.22204406]
[1752155170631,1.23012258,111030.0,111020.0,0.22204406]
[1752155170828,1.23012258,111030.0,111020.0,0.04195896]
[1752155171127,2.59500258,111030.0,111020.0,0.003]
[1752155171835,2.84500258,111030.0,111020.0,0.003]
[1752155172336,0.180085,111020.0,111010.0,0.03995896]
[1752155172537,0.1801013,111010.0,111000.0,0.36569414]
[1752155172738,0.6444713,111010.0,111000.0,0.10609087]
[1752155172930,2.57478721,111010.0,111000.0,0.23243691]
[1752155173334,2.59156166,111010.0,111000.0,0.04176068]
[1752155173539,2.59156166,111010.0,111000.0,0.00680172]
[1752155174340,1.34304575,111010.0,111000.0,0.18691922]
[1752155174536,0.48114445,111010.0,111000.0,0.19729922]
[1752155174838,0.42641445,111010.0,111000.0,0.71355903]
[1752155175029,0.37757445,111010.0,111000.0,1.10739998]
[1752155175229,0.01677445,111010.0,111000.0,1.13441043]
[1752155175434,0.01677445,111010.0,111000.0,1.13640933]
[1752155176541,0.01677445,111010.0,111000.0,0.75042942]
[1752155176737,0.01677445,111010.0,111000.0,1.13640933]
[1752155176935,0.01677445,111010.0,111000.0,0.75042942]
[1752155177741,0.01677445,111010.0,111000.0,1.43226942]
[1752155178043,0.01677445,111010.0,111000.0,1.44764942]
[1752155179242,0.05623445,111010.0,111000.0,1.44732942]
[1752155179440,0.59713575,111010.0,111000.0,1.06114951]
[1752155179645,0.47963445,111010.0,111000.0,1.46891543]
[1752155179835,0.01677445,111010.0,111000.0,1.46891543]
[1752155180032,0.01677445,111010.0,111000.0,1.50111543]
[1752155180236,0.39389445,111010.0,111000.0,1.44734942]
[1752155180542,0.59781575,111010.0,111000.0,0.16728408]
[1752155180739,1.22827166,111010.0,111000.0,0.11145093]
[1752155180944,1.22827166,111010.0,111000.0,0.05768886]
[1752155181246,1.47827166,111010.0,111000.0,0.05769025]
[1752155181542,0.2039375,111000.0,110990.0,0.02081363]
[1752155181740,1.01501741,111000.0,110990.0,0.03137404]
[1752155182040,1.44520941,111000.0,110990.0,0.02081363]
[1752155182448,1.44520941,111000.0,110990.0,0.01971719]
[1752155182747,2.12656941,111000.0,110990.0,0.19985099]
[1752155183047,1.87656941,111000.0,110990.0,0.20285099]
[1752155183442,1.19520941,111000.0,110990.0,0.20285099]
[1752155183746,0.6290375,111000.0,110990.0,0.20285099]
[1752155184840,1.01501741,111000.0,110990.0,0.20285099]
[1752155185040,0.6290375,111000.0,110990.0,0.20285099]
[1752155185349,0.6453575,111000.0,110990.0,0.20285099]
[1752155185742,0.6453575,111000.0,110990.0,0.02271719]
[1752155186151,1.03133741,111000.0,110990.0,0.02271719]
[1752155186451,1.03133741,111000.0,110990.0,0.20285099]
[1752155186653,1.03133741,111000.0,110990.0,0.20585099]
[1752155186850,0.6453575,111000.0,110990.0,0.20585099]
[1752155187550,1.03133741,111000.0,110990.0,0.02571719]
[1752155188150,1.21152941,111000.0,110990.0,0.02571719]
[1752155188346,1.64357182,111000.0,110980.0,0.04032876]
[1752155188551,0.0450388,110980.0,110960.0,0.23574534]
[1752155188853,1.37576611,110970.0,110960.0,0.23574694]
[1752155189640,2.05564611,110970.0,110960.0,0.05556444]
[1752155190250,2.05564611,110970.0,110960.0,0.06056444]
[1752155190446,2.05564611,110970.0,110960.0,0.00680237]
[1752155190653,2.23588611,110970.0,110960.0,0.00180237]
[1752155190954,2.23588611,110970.0,110960.0,0.00380237]
[1752155192043,2.24495759,110970.0,110960.0,0.00380237]
[1752155192242,1.1700262,110970.0,110960.0,0.00380237]
[1752155192453,1.8488262,110970.0,110960.0,0.00380237]
[1752155192644,1.8488262,110970.0,110960.0,0.00480237]
[1752155193149,2.23480611,110970.0,110960.0,0.00361583]
[1752155193348,0.2203225,110960.0,110950.0,0.00180253]
[1752155193554,0.66244925,110960.0,110950.0,0.18200123]
[1752155194254,0.66244925,110960.0,110950.0,0.19765123]
[1752155194651,0.66244925,110960.0,110950.0,0.22109123]
[1752155194955,0.66244925,110960.0,110950.0,0.25129123]
[1752155195454,0.66244925,110960.0,110950.0,0.25329123]
[1752155195655,0.66244925,110960.0,110950.0,0.00380253]
[1752155195855,1.04842916,110960.0,110950.0,0.00480253]
[1752155196058,0.1802149,110940.0,110930.0,0.83168875]
[1752155196352,1.31161481,110940.0,110930.0,0.01894477]
[1752155196549,0.9884349,110940.0,110930.0,0.01894477]
[1752155196859,0.1802312,110930.0,110920.0,0.07900509]
[1752155197061,2.00112036,110930.0,110920.0,0.07900509]
[1752155197357,2.00112036,110930.0,110920.0,0.25925249]
[1752155197555,2.00112036,110930.0,110920.0,0.20549042]
[1752155199057,2.00212036,110930.0,110920.0,0.20849042]
[1752155199257,0.64576036,110930.0,110920.0,0.20849042]
[1752155199454,0.58296036,110930.0,110920.0,0.6502324]
[1752155199660,0.58396036,110930.0,110920.0,0.7137324]
[1752155200153,0.58396036,110930.0,110920.0,0.32775249]
[1752155200557,0.40372916,110930.0,110920.0,0.7137324]
[1752155200750,0.37990916,110930.0,110920.0,1.7960353]
[1752155200954,0.01910916,110930.0,110920.0,2.1568353]
[1752155201264,0.01910916,110930.0,110920.0,1.8516373]
[1752155202361,0.01910916,110930.0,110920.0,2.18385514]
[1752155203062,0.002,110930.0,110920.0,2.18385514]
[1752155203359,0.67213945,110960.0,110950.0,0.2036387]
[1752155203562,0.62709175,110960.0,110950.0,0.58961861]
[1752155203758,0.62709175,110960.0,110950.0,0.65191861]
[1752155204559,0.62709175,110960.0,110950.0,0.0315]
[1752155204766,0.2040187,110950.0,110940.0,0.9342226]
[1752155204951,0.5980187,110950.0,110940.0,0.9576626]
[1752155205152,0.38462,110950.0,110940.0,1.37454251]
[1752155205462,0.5648187,110950.0,110940.0,0.2653498]
[1752155205759,0.2040349,110940.0,110930.0,1.0167085]
[1752155205963,0.5648349,110940.0,110930.0,1.0784085]
[1752155206766,0.5648349,110940.0,110930.0,1.0784885]
[1752155207162,0.5648349,110940.0,110930.0,0.8907579]
[1752155207464,0.6285349,110940.0,110930.0,0.8907579]
[1752155207663,0.6285349,110940.0,110930.0,0.9141979]
[1752155207864,0.6285349,110940.0,110930.0,0.9474979]
[1752155208566,0.6285349,110940.0,110930.0,0.9494979]
[1752155210364,0.6448549,110940.0,110930.0,1.0188161]
[1752155210761,0.6448549,110940.0,110930.0,0.3177494]
[1752155211068,1.03083481,110940.0,110930.0,0.9602094]
[1752155211365,1.04789763,110940.0,110930.0,0.0576682]
[1752155211567,1.04789763,110940.0,110930.0,0.004]
[1752155214567,1.04789763,110940.0,110930.0,0.1842312]
[1752155214868,1.04789763,110940.0,110930.0,0.004]
[1752155215068,1.05089763,110940.0,110930.0,0.003]
[1752155215767,1.23118563,110940.0,110930.0,0.003]
[1752155216763,0.1802474,110920.0,110910.0,0.00180318]
[1752155216970,2.00115731,110920.0,110910.0,0.00180318]
[1752155217165,2.46712392,110920.0,110910.0,0.01498532]
[1752155217356,2.26146401,110920.0,110910.0,0.01498532]
[1752155217762,0.1968099,110900.0,110890.0,0.07261409]
[1752155217958,2.00142981,110900.0,110890.0,0.01894589]
[1752155218173,0.2200662,110890.0,110880.0,0.17625378]
[1752155218465,0.6434662,110890.0,110880.0,0.27578427]
[1752155218669,0.6434662,110890.0,110880.0,0.22211607]
[1752155218971,0.5576262,110890.0,110880.0,0.27578427]
[1752155219169,0.5808662,110890.0,110880.0,0.25441607]
[1752155219367,0.6452662,110890.0,110880.0,0.07410367]
[1752155219568,1.03124611,110890.0,110880.0,0.00180367]
[1752155219767,1.01471611,110890.0,110880.0,0.00180367]
[1752155219972,0.2035524,110880.0,110870.0,0.00180383]
[1752155220172,2.38076433,110880.0,110870.0,0.00180383]
[1752155221072,0.64694442,110880.0,110870.0,0.18413253]
[1752155221275,0.37899202,110880.0,110870.0,0.59438244]
[1752155221468,0.55930442,110880.0,110870.0,0.65728244]
[1752155221967,0.37899202,110880.0,110870.0,0.65728244]
[1752155222275,0.01919202,110880.0,110870.0,0.734946]
[1752155222467,0.19950442,110880.0,110870.0,0.34896609]
[1752155222668,0.58354442,110880.0,110870.0,0.34896609]
[1752155222883,0.58254442,110880.0,110870.0,0.09097383]
[1752155223074,0.96952433,110880.0,110870.0,0.03007383]
[1752155223378,0.64774442,110880.0,110870.0,0.00480383]
[1752155223575,1.03372433,110880.0,110870.0,0.00480383]
[1752155224079,1.03372433,110880.0,110870.0,0.02907383]
[1752155224272,0.64774442,110880.0,110870.0,0.02907383]
[1752155224471,1.03372433,110880.0,110870.0,0.00480383]
[1752155224673,1.41970424,110880.0,110870.0,0.00480383]
[1752155225271,0.1803448,110860.0,110850.0,0.22349076]
[1752155225477,1.31116471,110860.0,110850.0,0.22349076]
[1752155225678,0.9881848,110860.0,110850.0,0.22349076]
[1752155226075,0.3608,110870.0,110860.0,0.3155962]
[1752155226379,0.5643685,110870.0,110860.0,0.3398662]
[1752155226575,0.3608,110870.0,110860.0,0.78984611]
[1752155227176,0.55930432,110880.0,110870.0,0.2045985]
[1752155227476,0.55930432,110880.0,110870.0,0.65457841]
[1752155227780,0.37899202,110880.0,110870.0,0.65457841]
[1752155228177,0.55830432,110880.0,110870.0,0.65457841]
[1752155228880,0.55830432,110880.0,110870.0,1.32973841]
[1752155229474,0.56530432,110880.0,110870.0,1.33073841]
[1752155229873,0.58854432,110880.0,110870.0,0.2379985]
[1752155230078,0.58854432,110880.0,110870.0,1.29865841]
[1752155230274,0.38499202,110880.0,110870.0,1.29865841]
[1752155230484,0.38299202,110880.0,110870.0,1.32875841]
[1752155230685,0.56330432,110880.0,110870.0,1.32875841]
[1752155231082,0.38099202,110880.0,110870.0,1.32775841]
[1752155231286,0.38499202,110880.0,110870.0,1.32875841]
[1752155231682,0.02419202,110880.0,110870.0,1.68955841]
[1752155231884,0.02119202,110880.0,110870.0,1.68955841]
[1752155232078,0.02219202,110880.0,110870.0,1.69055841]
[1752155232385,0.02219202,110880.0,110870.0,1.01587841]
[1752155232773,0.20250422,110880.0,110870.0,1.3035785]
[1752155232980,0.02219202,110880.0,110870.0,1.68955841]
[1752155233179,0.20050422,110880.0,110870.0,1.3035785]
[1752155233584,0.22374422,110880.0,110870.0,0.65507841]
[1752155233790,0.58454422,110880.0,110870.0,1.32867841]
[1752155233982,0.58454422,110880.0,110870.0,0.65507841]
[1752155234284,0.56130422,110880.0,110870.0,1.32891841]
[1752155235288,0.58454422,110880.0,110870.0,0.2690985]
[1752155235482,0.58454422,110880.0,110870.0,1.32895841]
[1752155235678,0.58454422,110880.0,110870.0,0.8798785]
[1752155235883,1.03332413,110880.0,110870.0,0.02627]
[1752155236490,1.03332413,110880.0,110870.0,0.1823285]
[1752155236788,0.64734422,110880.0,110870.0,0.002]
[1752155237595,1.03332413,110880.0,110870.0,0.002]
[1752155238793,1.21370814,110880.0,110870.0,0.002]
[1752155239483,1.21370814,110880.0,110850.0,0.2482631]
[1752155239484,0.1803448,110860.0,110850.0,0.2568418]
[1752155239685,0.9246948,110860.0,110850.0,0.2031736]
[1752155239993,0.9888948,110860.0,110850.0,0.2031736]
[1752155240391,0.9888948,110860.0,110850.0,0.2568418]
[1752155240688,1.37487471,110860.0,110850.0,0.0536682]
[1752155240888,1.37487471,110860.0,110850.0,0.01615704]
[1752155240889,1.37587471,110860.0,110850.0,0.01615704]
[1752155241186,0.180361,110850.0,110840.0,0.18218132]
[1752155241394,1.68495091,110850.0,110840.0,0.00180432]
[1752155242689,1.86538291,110850.0,110830.0,0.18218728]
[1752155242888,1.86538291,110850.0,110830.0,0.00180448]
[1752155242889,1.02769606,110840.0,110830.0,0.00180448]
[1752155243090,0.64171615,110840.0,110830.0,0.00180448]
[1752155243292,1.02769606,110840.0,110830.0,0.00180448]
[1752155244194,1.02969606,110840.0,110830.0,0.00380448]
[1752155244587,1.02969606,110840.0,110830.0,0.05747268]
[1752155245887,0.64371615,110840.0,110830.0,0.23786628]
[1752155246196,0.002,110840.0,110830.0,2.0105379]
[1752155246499,0.002,110840.0,110830.0,1.7695399]
[1752155246684,0.002,110840.0,110830.0,1.4087399]
[1752155246995,0.002,110840.0,110830.0,1.68875799]
[1752155247893,0.1823773,110840.0,110830.0,1.68875799]
[1752155248491,0.1823773,110840.0,110830.0,0.71283716]
[1752155248693,0.5431773,110840.0,110830.0,1.02267716]
[1752155248996,0.5754773,110840.0,110830.0,1.02267716]
[1752155249388,0.98042721,110840.0,110830.0,0.83192904]
[1752155249592,1.01292721,110840.0,110830.0,0.13850904]
[1752155249896,1.01292721,110840.0,110830.0,0.00380448]
[1752155251092,0.6269473,110840.0,110830.0,0.00380448]
[1752155251292,1.01292721,110840.0,110830.0,0.00380448]
[1752155251690,0.6269473,110840.0,110830.0,0.00380448]
[1752155252094,1.01292721,110840.0,110830.0,0.00380448]
[1752155253000,1.01292721,110840.0,110830.0,0.18419808]
[1752155253300,1.01292721,110840.0,110830.0,0.19752658]
[1752155253601,1.01292721,110840.0,110830.0,0.01713298]
[1752155253801,1.01292721,110840.0,110830.0,0.19752658]
[1752155253998,1.01292721,110840.0,110830.0,0.01713298]
[1752155254702,0.6269473,110840.0,110830.0,0.01713298]
[1752155254895,0.6269473,110840.0,110830.0,0.19752658]
[1752155255097,1.01292721,110840.0,110830.0,0.01713298]
[1752155257103,1.01292721,110840.0,110830.0,0.01716541]
[1752155257504,0.6269473,110840.0,110830.0,0.01716541]
[1752155257703,0.6269473,110840.0,110830.0,0.19755901]
[1752155257903,0.6424473,110840.0,110830.0,0.19755901]
[1752155258202,1.02842721,110840.0,110830.0,0.01716541]
[1752155259899,1.02842721,110840.0,110830.0,0.01717094]
[1752155260298,0.1959261,110810.0,110800.0,0.09403045]
[1752155260605,2.68271791,110810.0,110800.0,0.04014497]
[1752155260806,2.72971791,110810.0,110800.0,7e-08]
[1752155261001,0.1804424,110800.0,110790.0,0.00180514]
[1752155261203,1.00939231,110800.0,110790.0,0.00180514]
[1752155262495,1.57588422,110800.0,110790.0,0.00180514]
[1752155262698,0.1804914,110770.0,110760.0,0.00180562]
[1752155262907,2.65059131,110770.0,110760.0,0.00180562]
[1752155263098,2.3262114,110770.0,110760.0,0.18231322]
[1752155263298,0.9020914,110770.0,110760.0,0.20513322]
[1752155263510,1.5746914,110770.0,110760.0,0.26913322]
[1752155263702,1.96067131,110770.0,110760.0,0.08862562]
[1752155263906,2.00943131,110770.0,110760.0,0.26913322]
[1752155264107,2.00943131,110770.0,110760.0,0.08862562]
[1752155264404,2.00943131,110770.0,110760.0,0.26913322]
[1752155264795,2.00943131,110770.0,110760.0,0.02080321]
[1752155264996,2.00943131,110770.0,110750.0,0.00180579]
[1752155264997,0.1805076,110760.0,110750.0,0.00180579]
[1752155265298,1.39612795,110760.0,110750.0,0.00180579]
[1752155265502,0.62416813,110760.0,110750.0,0.18232969]
[1752155265699,0.62416813,110760.0,110750.0,0.20514969]
[1752155265897,1.68286804,110760.0,110750.0,0.20514969]
[1752155266310,1.68386804,110760.0,110750.0,0.20614969]
[1752155267200,1.68486804,110760.0,110750.0,0.20714969]
[1752155267401,1.68486804,110760.0,110750.0,0.02662579]
[1752155267603,1.29888813,110760.0,110750.0,0.02662579]
[1752155267911,1.68486804,110760.0,110750.0,0.00380579]
[1752155268111,2.07084795,110760.0,110750.0,0.00380579]
[1752155268300,1.68486804,110760.0,110750.0,0.00380579]
[1752155268906,2.50142396,110760.0,110750.0,9e-08]
[1752155269407,0.1805565,110730.0,110720.0,0.04442552]
[1752155269613,2.64845826,110730.0,110720.0,0.04442552]
[1752155269913,2.71165826,110730.0,110720.0,0.00180628]
[1752155270911,2.89228226,110730.0,110720.0,0.00180628]
[1752155271215,2.89328226,110730.0,110720.0,0.00380628]
[1752155271908,2.50730235,110730.0,110720.0,8e-08]
[1752155272114,3.28026217,110730.0,110720.0,8e-08]
[1752155272314,2.89428226,110730.0,110720.0,0.01411825]
[1752155273010,2.89328226,110730.0,110720.0,0.01411817]
[1752155273320,2.89328226,110730.0,110720.0,0.01511817]
[1752155273321,2.89528226,110730.0,110720.0,0.01511817]
[1752155273816,0.98519835,110730.0,110720.0,0.21951097]
[1752155274011,0.74144185,110730.0,110720.0,0.60549088]
[1752155274216,0.92199835,110730.0,110720.0,0.68671958]
[1752155274412,0.74144185,110730.0,110720.0,0.68671958]
[1752155274716,0.38064185,110730.0,110720.0,0.68671958]
[1752155275217,0.38064185,110730.0,110720.0,0.30073967]
[1752155275413,0.38064185,110730.0,110720.0,0.68671958]
[1752155275906,0.56119835,110730.0,110720.0,0.68671958]
[1752155276214,0.56119835,110730.0,110720.0,0.30073967]
[1752155276215,0.94717826,110730.0,110720.0,0.30073967]
[1752155276414,0.94717826,110730.0,110720.0,0.28161097]
[1752155276820,0.56119835,110730.0,110720.0,0.28161097]
[1752155278316,0.94717826,110730.0,110720.0,0.03893817]
[1752155278619,0.97807826,110730.0,110720.0,0.03893817]
[1752155278813,0.59209835,110730.0,110720.0,0.21951097]
[1752155279019,1.26321835,110730.0,110720.0,0.28241097]
[1752155279213,0.56119835,110730.0,110720.0,0.66839088]
[1752155279916,0.56119835,110730.0,110720.0,0.28241097]
[1752155280414,0.56119835,110730.0,110720.0,0.66839088]
[1752155280617,0.56119825,110730.0,110720.0,0.66839088]
[1752155281612,0.56119825,110730.0,110720.0,0.28241097]
[1752155282516,0.56119825,110730.0,110720.0,0.2682928]
[1752155283521,0.94717816,110730.0,110720.0,0.2682928]
[1752155284218,0.56119825,110730.0,110720.0,0.2682928]
[1752155285110,0.56119825,110730.0,110720.0,0.65427271]
[1752155285312,0.38064185,110730.0,110720.0,0.65427271]
[1752155285511,0.56119835,110730.0,110720.0,0.65427271]
[1752155285823,0.56119835,110730.0,110720.0,0.2682928]
[1752155287513,0.56119835,110730.0,110720.0,0.65427271]
[1752155287714,0.56119835,110730.0,110720.0,0.2682928]
[1752155287921,0.3638,110730.0,110720.0,1.32367271]
[1752155288119,0.5443565,110730.0,110720.0,1.32367271]
[1752155288317,0.3638,110730.0,110720.0,1.32367271]
[1752155288527,0.3638,110730.0,110720.0,1.34266607]
[1752155290715,0.3638,110730.0,110720.0,1.34274575]
[1752155291029,0.5864648,110750.0,110740.0,0.2043603]
[1752155291231,0.5864648,110750.0,110740.0,0.8732803]
[1752155291519,0.5864648,110750.0,110740.0,0.9361803]
[1752155291719,1.00494471,110750.0,110740.0,0.2371603]
[1752155291925,1.39944471,110750.0,110740.0,0.02382]
[1752155292120,0.1805402,110740.0,110730.0,0.0689571]
[1752155292322,0.6062402,110740.0,110730.0,0.249505]
[1752155292726,0.6062402,110740.0,110730.0,0.310305]
[1752155293127,0.6102402,110740.0,110730.0,0.311305]
[1752155293323,0.6122402,110740.0,110730.0,0.311305]
[1752155293721,0.6122402,110740.0,110730.0,0.978945]
[1752155294520,0.3668,110740.0,110730.0,1.36492491]
[1752155295328,0.006,110740.0,110730.0,1.36492491]
[1752155295529,0.3668,110740.0,110730.0,1.36492491]
[1752155296234,0.5473401,110740.0,110730.0,1.36492491]
[1752155296430,0.006,110740.0,110730.0,1.36492491]
[1752155296727,0.5473401,110740.0,110730.0,1.4189567]
[1752155297033,0.3668,110740.0,110730.0,1.4189567]
[1752155297333,0.3668,110740.0,110730.0,1.50000439]
[1752155298122,0.3608,110760.0,110750.0,0.2043438]
[1752155298321,0.3628,110770.0,110760.0,0.1805075]
[1752155298526,0.3628,110770.0,110760.0,0.65250741]
[1752155298829,0.3628,110770.0,110760.0,0.83306741]
[1752155299028,0.3628,110770.0,110760.0,0.65250741]
[1752155299830,0.5432912,110770.0,110760.0,0.2665275]
[1752155300030,0.5432912,110770.0,110760.0,0.9342475]
[1752155300226,0.98409111,110770.0,110760.0,0.2043275]
[1752155300428,1.02509111,110770.0,110760.0,0.69354]
[1752155300626,1.02509111,110770.0,110760.0,0.02582]
[1752155300831,1.02509111,110770.0,110760.0,0.2063275]
[1752155301134,0.6391112,110770.0,110760.0,0.2063275]
[1752155301630,1.02909111,110770.0,110760.0,0.02682]
[1752155301835,1.02909111,110770.0,110760.0,0.69438]
[1752155302036,1.02909111,110770.0,110760.0,0.02682]
[1752155302230,0.6431112,110770.0,110760.0,0.2073275]
[1752155302732,1.02909111,110770.0,110760.0,0.2073275]
[1752155304340,0.6431112,110770.0,110760.0,0.2073275]
[1752155305229,0.6190912,110770.0,110760.0,0.2073275]
[1752155305536,0.5562912,110770.0,110760.0,0.65690741]
[1752155305736,0.5562912,110770.0,110760.0,0.2709275]
[1752155306437,0.96629111,110770.0,110760.0,0.2073275]
[1752155306738,1.02929111,110770.0,110760.0,0.003]
[1752155306939,1.02929111,110770.0,110760.0,0.2080775]
[1752155307126,1.02929111,110770.0,110760.0,0.003]
[1752155311134,1.02929111,110770.0,110760.0,0.1835075]
[1752155311334,1.02929111,110770.0,110760.0,0.003]
[1752155311537,1.02929111,110770.0,110760.0,0.1835075]
[1752155311843,1.04447111,110770.0,110760.0,0.1835075]
[1752155312042,1.04447111,110770.0,110760.0,0.2231875]
[1752155312640,1.04447111,110770.0,110760.0,0.003]